[Event "92nd St. Petersburg-ch Men 2019"]
[Site "Sankt Petersburg"]
[Date "2019.04.08"]
[Round "8.4"]
[White "Usmanov, Vasily"]
[Black "Duzhakov, Ilya"]
[Result "1-0"]
[ECO "E20"]
[WhiteElo "2450"]
[BlackElo "2397"]
[Annotator "ChessBase"]
[PlyCount "115"]
[EventDate "2019.04.01"]
[EventType "tourn"]
[EventCountry "RUS"]
[SourceTitle "playchess.com"]
[Source "ChessBase"]
[SourceQuality "1"]
[TimeControl "40/5400+30:1800+30"]

1. d4 {[%emt 0:00:00]} e6 {[%emt 0:04:01]} 2. c4 {[%emt 0:00:46]} Nf6 {[%emt 0:00:10]} 3. Nc3 {[%emt 0:01:36]} Bb4 {[%emt 0:00:08]} 4. Bd2 {[%emt 0:00:04]} b6 {[%emt 0:01:35]} 5. e4 {[%emt 0:01:52]} Bxc3 {[%emt 0:04:00]} 6. Bxc3 {[%emt 0:00:03]} Nxe4 {[%emt 0:00:33]} 7. Qg4 {[%emt 0:00:03]} d5 {[%emt 0:03:49]} 8. cxd5 {[%emt 0:02:35]} exd5 {[%emt 0:02:43]} 9. Qxg7 {[%emt 0:00:08]} Qf6 {[%emt 0:00:09]} 10. Qxf6 {[%emt 0:00:06]} Nxf6 {[%emt 0:00:04]} 11. f3 {[%emt 0:01:21]} Bb7 {[%emt 0:06:33]} 12. Kf2 {[%emt 0:02:44]} O-O {[%emt 0:00:51]} 13. Ne2 {[%emt 0:03:47]} Nbd7 {[%emt 0:03:23]} 14. Nf4 {[%emt 0:02:50]} Rfe8 {[%emt 0:01:01]} 15. g4 {[%emt 0:02:00]} Nf8 {[%emt 0:03:36]} 16. g5 {[%emt 0:03:59]} N6d7 {[%emt 0:00:01]} 17. h4 {[%emt 0:01:31]} Ne6 {[%emt 0:02:32]} 18. Nh5 {[%emt 0:09:50]} a6 {[%emt 0:03:51]} 19. Bh3 {[%emt 0:16:52]} c5 {[%emt 0:04:29]} 20. Rad1 {[%emt 0:00:29]} Rac8 {[%emt 0:10:46]} 21. Rhe1 {[%emt 0:01:10]} Kf8 {[%emt 0:21:14]} 22. Bf5 {[%emt 0:05:57]} cxd4 {[%emt 0:04:29]} 23. Bxd4 {[%emt 0:00:41]} Rc4 {[%emt 0:01:14]} 24. Nf6 {[%emt 0:05:38]} Nxf6 {[%emt 0:07:44]} 25. Bxf6 {[%emt 0:00:03]} Kg8 {[%emt 0:04:01]} 26. h5 {[%emt 0:10:43]} Rf4 {[%emt 0:01:31]} 27. Bg4 {[%emt 0:01:19]} h6 {[%emt 0:00:37]} 28. Kg3 {[%emt 0:01:53]} hxg5 {[%emt 0:00:48]} 29. Bxg5 {[%emt 0:00:40]} Rb4 {[%emt 0:00:53]} 30. b3 {[%emt 0:00:55]} Bc6 {[%emt 0:03:12]} 31. Bd2 {[%emt 0:03:46]} Rb5 {[%emt 0:00:05]} 32. Rc1 {[%emt 0:02:27]} Rc5 {[%emt 0:00:56]} 33. Bb4 {[%emt 0:01:52]} Rxc1 {[%emt 0:01:47]} 34. Rxc1 {[%emt 0:00:02]} Bb5 {[%emt 0:00:57]} 35. h6 {[%emt 0:02:15]} Kh7 {[%emt 0:01:22]} 36. Bd2 {[%emt 0:00:32]} Bd3 {[%emt 0:02:09]} 37. Rc6 {[%emt 0:01:29]} Nd4 {[%emt 0:00:27]} 38. Rxb6 {[%emt 0:00:40]} Re2 {[%emt 0:00:42]} 39. Bc3 {[%emt 0:00:40]} Nf5+ {[%emt 0:00:34]} 40. Bxf5+ {[%emt 0:00:00]} Bxf5 {[%emt 0:00:00]} 41. Rxa6 {[%emt 0:02:00]} Bb1 {[%emt 0:01:16]} 42. a4 {[%emt 0:02:04]} Re3 {[%emt 0:00:30]} 43. Bg7 {[%emt 0:02:20]} Rxb3 {[%emt 0:03:11]} 44. a5 {[%emt 0:00:19]} Ra3 {[%emt 0:04:01]} 45. Kf4 {[%emt 0:02:07]} Bd3 {[%emt 0:05:04]} 46. Ra8 {[%emt 0:00:22]} Kg6 {[%emt 0:00:23]} 47. Ke5 {[%emt 0:00:58]} Bf1 {[%emt 0:15:09]} 48. f4 {[%emt 0:01:56]} Re3+ {[%emt 0:00:03]} 49. Kd6 {[%emt 0:00:35]} Rf3 {[%emt 0:03:17]} 50. a6 {[%emt 0:01:50]} Rxf4 {[%emt 0:02:31]} 51. a7 {[%emt 0:00:04]} Ra4 {[%emt 0:00:22]} 52. Bd4 {[%emt 0:00:12]} Ra6+ {[%emt 0:00:32]} 53. Kc7 {[%emt 0:00:27]} Kxh6 {[%emt 0:00:31]} 54. Rh8+ {[%emt 0:00:09]} Kg5 {[%emt 0:00:01]} 55. a8=Q {[%emt 0:00:18]} Rxa8 {[%emt 0:00:05]} 56. Rxa8 {[%emt 0:00:04]} Kf4 {[%emt 0:00:01]} 57. Kd6 {[%emt 0:37:27]} Ke4 58. Kc5 {[%emt 0:00:00]} 1-0

[Event "92nd St. Petersburg-ch Men 2019"]
[Site "Sankt Petersburg"]
[Date "2019.04.09"]
[Round "9.1"]
[White "Shubin, Kirill"]
[Black "Lobanov, Sergei"]
[Result "1/2-1/2"]
[ECO "C54"]
[WhiteElo "2391"]
[BlackElo "2528"]
[Annotator "ChessBase"]
[PlyCount "124"]
[EventDate "2019.04.01"]
[EventType "tourn"]
[EventCountry "RUS"]
[SourceTitle "playchess.com"]
[Source "ChessBase"]
[SourceQuality "1"]
[TimeControl "40/5400+30:1800+30"]

1. e4 {[%emt 0:00:00]} e5 {[%emt 0:02:56]} 2. Nf3 {[%emt 0:00:00]} Nc6 {[%emt 0:00:04]} 3. Bc4 {[%emt 0:00:08]} Bc5 {[%emt 0:00:11]} 4. c3 {[%emt 0:00:08]} Nf6 {[%emt 0:00:15]} 5. d3 {[%emt 0:00:06]} d6 {[%emt 0:00:55]} 6. O-O {[%emt 1:32:38]} a6 7. a4 {[%emt 0:00:30]} O-O {[%emt 0:01:05]} 8. Na3 {[%emt 0:00:30]} h6 {[%emt 1:28:34]} 9. Be3 {[%emt 0:00:30]} Bxe3 {[%emt 0:00:00]} 10. fxe3 {[%emt 0:00:00]} Ne7 {[%emt 0:00:00]} 11. b4 {[%emt 0:00:00]} c6 {[%emt 0:00:00]} 12. Bb3 {[%emt 0:00:00]} Ng6 {[%emt 0:00:00]} 13. Nc4 {[%emt 0:00:00]} Be6 {[%emt 0:00:00]} 14. Na5 {[%emt 0:00:00]} Bxb3 {[%emt 0:00:00]} 15. Nxb3 {[%emt 0:00:00]} d5 {[%emt 0:00:00]} 16. exd5 {[%emt 0:00:00]} cxd5 {[%emt 0:00:00]} 17. Nfd2 {[%emt 0:00:00]} Rc8 {[%emt 0:00:00]} 18. Rc1 {[%emt 0:00:00]} b6 {[%emt 0:00:00]} 19. c4 {[%emt 0:00:00]} dxc4 {[%emt 0:00:00]} 20. Nxc4 {[%emt 0:00:00]} b5 {[%emt 0:00:00]} 21. axb5 {[%emt 0:00:00]} axb5 {[%emt 0:00:00]} 22. Nb2 {[%emt 0:00:00]} Nd5 {[%emt 0:00:00]} 23. Qd2 {[%emt 0:00:00]} Qg5 {[%emt 0:00:00]} 24. Rce1 {[%emt 0:00:00]} Rc6 {[%emt 0:00:00]} 25. Nc5 {[%emt 0:00:00]} Rfc8 {[%emt 0:00:00]} 26. Nd1 {[%emt 0:00:00]} Nxb4 {[%emt 0:00:00]} 27. Qxb4 {[%emt 0:00:00]} Rxc5 {[%emt 0:00:00]} 28. Qb3 {[%emt 0:00:00]} R8c7 {[%emt 0:00:00]} 29. Re2 {[%emt 0:00:00]} Qg4 {[%emt 0:00:00]} 30. Ra2 {[%emt 0:00:00]} Qd7 {[%emt 0:00:00]} 31. Ra8+ {[%emt 0:00:00]} Kh7 {[%emt 0:00:00]} 32. Ra2 {[%emt 0:00:00]} Qd5 {[%emt 0:00:00]} 33. Qxd5 {[%emt 0:00:00]} Rxd5 {[%emt 0:00:00]} 34. Nf2 {[%emt 0:00:00]} Ne7 {[%emt 0:00:00]} 35. Rb2 {[%emt 0:00:00]} Kg6 {[%emt 0:02:26]} 36. e4 {[%emt 0:00:00]} Rdc5 {[%emt 0:00:17]} 37. d4 {[%emt 0:00:00]} exd4 {[%emt 0:03:23]} 38. Nd3 {[%emt 0:00:00]} Rc3 {[%emt 0:01:23]} 39. Ne5+ {[%emt 0:00:00]} Kh7 {[%emt 0:00:21]} 40. Rxf7 {[%emt 0:00:00]} d3 {[%emt 0:00:00]} 41. Rd2 {[%emt 0:02:53]} b4 {[%emt 0:09:20]} 42. Rxd3 {[%emt 0:12:57]} b3 {[%emt 0:04:43]} 43. Rxc3 {[%emt 0:01:50]} Rxc3 {[%emt 0:00:08]} 44. Rxe7 {[%emt 0:00:04]} b2 {[%emt 0:00:06]} 45. Rb7 {[%emt 0:00:02]} Rc1+ {[%emt 0:00:02]} 46. Kf2 {[%emt 0:00:05]} b1=Q {[%emt 0:00:04]} 47. Rxb1 {[%emt 0:00:03]} Rxb1 {[%emt 0:00:01]} 48. h4 {[%emt 0:02:50]} Rb5 {[%emt 0:00:11]} 49. Nd3 {[%emt 0:04:47]} Kg6 {[%emt 0:00:37]} 50. g4 {[%emt 0:00:51]} Rb1 {[%emt 0:01:47]} 51. Ne5+ {[%emt 0:01:33]} Kf6 {[%emt 0:00:17]} 52. Nf3 {[%emt 0:00:10]} Ke6 {[%emt 0:04:22]} 53. h5 {[%emt 0:01:20]} Kd6 {[%emt 0:00:44]} 54. Ke3 {[%emt 0:01:15]} Kc5 {[%emt 0:01:42]} 55. Kf4 {[%emt 0:00:11]} Rf1 {[%emt 0:00:04]} 56. Ke3 {[%emt 0:00:04]} Rh1 {[%emt 0:00:52]} 57. Kf4 {[%emt 0:04:06]} Kc4 {[%emt 0:02:21]} 58. Ne5+ {[%emt 0:01:25]} Kd4 {[%emt 0:00:27]} 59. Nf3+ {[%emt 0:01:20]} Kd3 {[%emt 0:06:16]} 60. Ne5+ {[%emt 0:00:13]} Kd4 {[%emt 0:03:01]} 61. Nf3+ {[%emt 0:00:14]} Kd3 {[%emt 0:05:18]} 62. Ne5+ {[%emt 0:00:05]} Kd4 {[%emt 0:02:46]} 1/2-1/2

[Event "92nd St. Petersburg-ch Men 2019"]
[Site "Sankt Petersburg"]
[Date "2019.04.09"]
[Round "9.2"]
[White "Vlasenko, Miroslav"]
[Black "Lesovoi, Evgenij"]
[Result "1-0"]
[ECO "E22"]
[WhiteElo "2410"]
[BlackElo "2305"]
[Annotator "NA"]
[PlyCount "41"]
[EventDate "2019.04.01"]
[EventType "tourn"]
[EventCountry "RUS"]
[SourceTitle "playchess.com"]
[Source "ChessBase"]
[SourceQuality "1"]
[TimeControl "40/5400+30:1800+30"]

{[%evp 8,40,0,4,10,13,12,19,21,16,41,32767,32767,32767,32767,32,45,32767,64,60,77,32767,32767,32767,32767,32767,32767,32767,32767,32767,32767,286,32767,256,253]} 1. d4 {[%emt 0:05:33]} Nf6 {[%emt 0:00:00]} 2. c4 {[%emt 0:00:04]} e6 {[%emt 0:00:00]} 3. Nc3 {[%emt 0:00:04]} Bb4 {[%emt 0:00:10]} 4. Qb3 {[%emt 0:00:05]} c5 {[%emt 0:03:39]} 5. dxc5 {[%emt 0:00:23]} Bxc5 {[%emt 0:00:14]} 6. Nf3 {[%emt 0:00:43]} O-O {[%emt 0:04:45]} 7. Bg5 {[%emt 0:00:31] E22: Nimzo-Indian: 4 Qb3} Be7 {[%emt 0:10:10]} (7... Nc6 8. e3 b6 9. Rd1 Be7 10. Bd3 Bb7 11. O-O h6 12. Bh4 Na5 13. Qc2 Rc8 14. Qe2 Bxf3 15. gxf3 d5 16. cxd5 Nxd5 17. Bxe7 Nxc3 18. Bxd8 Nxe2+ 19. Bxe2 Rfxd8 {½-½ (27) Piket,J (2632)-Gelfand,B (2712) Monte Carlo 2001}) 8. e4 {[%emt 0:02:27]} d6 {[%emt 0:00:36]} 9. Rd1 {[%emt 0:01:49]} Qc7 $146 {[%emt 0:06:29]} ({Predecessor:} 9... Nbd7 10. Be2 a6 11. O-O Qc7 12. Bf4 b6 13. Qc2 Rd8 14. Qd3 Nc5 {½-½ (26) Bosch,J (2415)-Pilgaard,K (2377) Gelsenkirchen 2000}) 10. Nb5 {[%emt 0:07:49]} Qc6 {[%emt 0:04:57]} 11. Qc2 {[%emt 0:07:43]} (11. Bxf6 $5 gxf6 12. Qe3 $14) 11... Nbd7 {[%emt 0:03:12]} 12. Nfd4 {[%emt 0:06:27]} Qc5 {[%emt 0:04:52]} 13. Be3 {[%emt 0:01:15]} Qb4+ {[%emt 0:08:30]} 14. Rd2 {[%emt 0:21:51]} Ng4 {[%emt 0:13:44]} 15. Bf4 {[%emt 0:01:25]} Nde5 {[%emt 0:10:44]} 16. h3 {[%emt 0:03:48]} g5 {[%emt 0:05:03]} 17. Bg3 {[%emt 0:00:48]} Nf6 {[%emt 0:00:19]} 18. a3 {[%emt 0:05:30]} Qa5 {[%emt 0:07:06] [#]} 19. c5 $1 {[%emt 0:04:06]} Nfd7 {[%emt 0:05:13]} 20. Nb3 {[%emt 0:02:51]} Qd8 $18 {[%emt 0:00:45]} 21. Nxd6 {[%emt 0:00:45]} 1-0

[Event "92nd St. Petersburg-ch Men 2019"]
[Site "Sankt Petersburg"]
[Date "2019.04.09"]
[Round "9.4"]
[White "Golikov, Daniil"]
[Black "Usmanov, Vasily"]
[Result "1/2-1/2"]
[ECO "E11"]
[WhiteElo "2298"]
[BlackElo "2450"]
[Annotator "ChessBase"]
[PlyCount "85"]
[EventDate "2019.04.01"]
[EventType "tourn"]
[EventCountry "RUS"]
[SourceTitle "playchess.com"]
[Source "ChessBase"]
[SourceQuality "1"]
[TimeControl "40/5400+30:1800+30"]

1. d4 {[%emt 0:00:08]} e6 {[%emt 0:00:00]} 2. c4 {[%emt 0:00:12]} Bb4+ {[%emt 0:00:00]} 3. Bd2 {[%emt 0:00:05]} a5 {[%emt 0:00:00]} 4. Nf3 {[%emt 0:01:22]} d5 {[%emt 0:00:00]} 5. a3 {[%emt 0:00:14]} Bxd2+ {[%emt 0:03:07]} 6. Nbxd2 {[%emt 0:00:07]} Nf6 {[%emt 0:00:04]} 7. e3 {[%emt 0:00:18]} O-O {[%emt 0:00:05]} 8. Bd3 {[%emt 0:00:45]} b6 {[%emt 0:06:11]} 9. O-O {[%emt 0:00:26]} Bb7 {[%emt 0:00:08]} 10. Qc2 {[%emt 0:00:15]} Nbd7 {[%emt 0:00:48]} 11. Rfc1 {[%emt 0:03:33]} c5 {[%emt 0:01:01]} 12. cxd5 {[%emt 0:00:25]} exd5 {[%emt 0:00:12]} 13. dxc5 {[%emt 0:02:58]} bxc5 {[%emt 0:00:29]} 14. a4 {[%emt 0:00:44]} Qb6 {[%emt 0:05:13]} 15. b3 {[%emt 0:01:07]} Rfe8 {[%emt 0:03:10]} 16. Bb5 {[%emt 0:05:02]} Rac8 {[%emt 0:06:38]} 17. Qb2 {[%emt 0:00:50]} Re7 {[%emt 0:01:21]} 18. Rd1 {[%emt 0:01:27]} Nb8 {[%emt 0:01:03]} 19. Rac1 {[%emt 0:02:49]} Na6 {[%emt 0:00:09]} 20. Nf1 {[%emt 0:02:04]} Nb4 {[%emt 0:08:39]} 21. Ng3 {[%emt 0:01:19]} Qe6 {[%emt 0:02:04]} 22. Rc3 {[%emt 0:02:03]} Rec7 {[%emt 0:05:12]} 23. Rdc1 {[%emt 0:01:03]} Ne4 {[%emt 0:03:59]} 24. Nxe4 {[%emt 0:00:06]} Qxe4 {[%emt 0:00:05]} 25. Qb1 {[%emt 0:02:10]} Qxb1 {[%emt 0:10:12]} 26. Rxb1 {[%emt 0:00:01]} d4 {[%emt 0:00:23]} 27. exd4 {[%emt 0:00:05]} Bxf3 {[%emt 0:00:22]} 28. gxf3 {[%emt 0:00:15]} cxd4 {[%emt 0:00:34]} 29. Rxc7 {[%emt 0:00:10]} Rxc7 {[%emt 0:00:02]} 30. Rd1 {[%emt 0:00:07]} Nc2 {[%emt 0:03:31]} 31. Bd3 {[%emt 0:00:20]} g6 {[%emt 0:00:37]} 32. Bxc2 {[%emt 0:00:05]} Rxc2 {[%emt 0:00:03]} 33. Rxd4 {[%emt 0:00:05]} Rc3 {[%emt 0:00:08]} 34. Kg2 {[%emt 0:00:08]} Rxb3 {[%emt 0:00:03]} 35. Rd5 {[%emt 0:00:06]} Ra3 {[%emt 0:00:03]} 36. Rxa5 {[%emt 0:00:04]} Kg7 {[%emt 0:00:05]} 37. Kg3 {[%emt 0:00:28]} h5 {[%emt 0:00:22]} 38. Ra8 {[%emt 0:00:29]} g5 {[%emt 0:00:18]} 39. a5 {[%emt 0:00:06]} g4 {[%emt 0:00:16]} 40. Kh4 {[%emt 0:00:00]} Rxf3 {[%emt 0:00:00]} 41. Kxh5 {[%emt 0:02:14]} Rxf2 {[%emt 0:01:50]} 42. Kxg4 {[%emt 0:00:09]} Rxh2 {[%emt 0:00:03]} 43. a6 {[%emt 0:00:24]} 1/2-1/2

[Event "92nd St. Petersburg-ch Men 2019"]
[Site "Sankt Petersburg"]
[Date "2019.04.10"]
[Round "10.2"]
[White "Saveliev, Alexei"]
[Black "Askerov, Marat"]
[Result "0-1"]
[ECO "B13"]
[WhiteElo "2372"]
[BlackElo "2318"]
[Annotator "NA"]
[PlyCount "80"]
[EventDate "2019.04.01"]
[EventType "tourn"]
[EventCountry "RUS"]
[SourceTitle "playchess.com"]
[Source "ChessBase"]
[SourceQuality "1"]
[TimeControl "40/5400+30:1800+30"]

1. e4 {[%emt 0:00:24]} c6 {[%emt 0:00:00]} 2. d4 {[%emt 0:01:12]} d5 {[%emt 0:00:00]} 3. exd5 {[%emt 0:00:04]} cxd5 {[%emt 0:00:00]} 4. Bd3 {[%emt 0:00:02]} Nc6 {[%emt 0:00:01]} 5. c3 {[%emt 0:01:56]} Qc7 {[%emt 0:09:02]} 6. h3 {[%emt 0:01:22]} e6 {[%emt 0:01:34] B13: Caro-Kann: Exchange Variation and Panov-Botvinnik Attack} (6... g6 7. Qc2 f6 8. Ne2 e5 9. O-O Nge7 10. dxe5 fxe5 11. c4 e4 12. Bxe4 dxe4 13. Nbc3 Bg7 14. Nd5 Qd6 {0-1 (29) Aronian,L (2767)-Howell,D (2685) Caleta 2019}) 7. Nf3 {[%emt 0:05:23]} Bd6 {[%emt 0:00:07]} 8. O-O {[%emt 0:00:07]} Nge7 {[%emt 0:00:04]} 9. Re1 {[%emt 0:02:58]} Bd7 {[%emt 0:00:19]} 10. a4 {[%emt 0:04:20]} f6 {[%emt 0:05:52]} 11. c4 {[%emt 0:11:23]} Kf7 $146 {[%emt 0:21:57]} (11... O-O $11) ({Predecessor:} 11... Nb4 12. c5 Bf4 13. Nc3 a6 14. Bb1 Bxc1 15. Qxc1 {½-½ (53) Khavsky,S (2322)-Solovjova,V (2221) St Petersburg 2008}) 12. Nc3 {[%emt 0:03:52]} a6 {[%emt 0:00:29]} 13. b3 {[%emt 0:16:32]} Bb4 {[%emt 0:12:37]} 14. Bb2 {[%emt 0:01:42]} Rad8 {[%emt 0:06:23]} 15. Rc1 {[%emt 0:01:38]} Bc8 {[%emt 0:01:01]} 16. Re2 {[%emt 0:05:02]} Qf4 {[%emt 0:13:12]} 17. Na2 {[%emt 0:02:02]} Ba5 {[%emt 0:00:32]} 18. Qc2 {[%emt 0:03:24]} (18. Ba3 $16) 18... g5 {[%emt 0:03:56]} 19. Rd1 {[%emt 0:02:18]} (19. Bxh7 g4 $19) 19... h6 {[%emt 0:03:21]} 20. Qb1 {[%emt 0:07:10]} Qc7 $14 {[%emt 0:03:00]} 21. Bc2 {[%emt 0:11:42]} h5 {[%emt 0:02:13]} 22. c5 {[%emt 0:06:44]} Nb4 {[%emt 0:02:41]} 23. Ba3 {[%emt 0:03:18]} Nxc2 {[%emt 0:02:05]} 24. Qxc2 {[%emt 0:00:03]} Qf4 {[%emt 0:02:37]} 25. Nc1 {[%emt 0:03:31]} Bc7 {[%emt 0:02:06]} 26. Nd3 {[%emt 0:00:04]} Qf5 {[%emt 0:00:09]} 27. Bc1 {[%emt 0:01:08]} Ng6 {[%emt 0:02:36]} 28. c6 {[%emt 0:00:22]} b6 {[%emt 0:00:32]} 29. Nh2 {[%emt 0:00:40]} g4 {[%emt 0:01:05]} 30. Nf1 {[%emt 0:01:41]} gxh3 {[%emt 0:02:06]} 31. Ne3 {[%emt 0:01:51]} Qe4 {[%emt 0:00:23]} 32. a5 {[%emt 0:01:23]} hxg2 {[%emt 0:02:04]} 33. Nxg2 {[%emt 0:00:26]} Qg4 {[%emt 0:00:13]} 34. f3 {[%emt 0:00:30]} Qg3 {[%emt 0:00:46]} 35. axb6 {[%emt 0:00:28]} Bxb6 {[%emt 0:00:10]} 36. Ndf4 {[%emt 0:00:35]} Nh4 {[%emt 0:00:30]} 37. Kf1 {[%emt 0:00:38]} Nxf3 {[%emt 0:00:41]} 38. Re3 {[%emt 0:00:27]} Qg4 {[%emt 0:01:05]} 39. c7 {[%emt 0:00:28]} Rdg8 {[%emt 0:00:26]} 40. Qc6 {[%emt 0:00:00]} Nxd4 {[%emt 0:00:00]} 0-1

[Event "92nd St. Petersburg-ch Men 2019"]
[Site "Sankt Petersburg"]
[Date "2019.04.11"]
[Round "11.1"]
[White "Vlasenko, Miroslav"]
[Black "Lobanov, Sergei"]
[Result "1-0"]
[ECO "E32"]
[WhiteElo "2410"]
[BlackElo "2528"]
[Annotator "ChessBase"]
[PlyCount "150"]
[EventDate "2019.04.01"]
[EventType "tourn"]
[EventCountry "RUS"]
[SourceTitle "playchess.com"]
[Source "ChessBase"]
[SourceQuality "1"]
[TimeControl "40/5400+30:1800+30"]

1. d4 {[%emt 0:12:31]} Nf6 {[%emt 0:00:00]} 2. c4 {[%emt 0:00:03]} e6 {[%emt 0:01:36]} 3. Nc3 {[%emt 0:00:06]} Bb4 {[%emt 0:00:01]} 4. Qc2 {[%emt 0:00:07]} O-O {[%emt 0:00:11]} 5. a3 {[%emt 0:00:03]} Bxc3+ {[%emt 0:00:05]} 6. Qxc3 {[%emt 0:00:04]} b6 {[%emt 0:00:19]} 7. Bg5 {[%emt 0:00:07]} Bb7 {[%emt 0:00:19]} 8. e3 {[%emt 0:00:06]} h6 {[%emt 0:01:27]} 9. Bh4 {[%emt 0:00:10]} c5 {[%emt 0:01:33]} 10. dxc5 {[%emt 0:02:07]} bxc5 {[%emt 0:00:24]} 11. Nf3 {[%emt 0:02:17]} g5 {[%emt 0:10:23]} 12. Bg3 {[%emt 0:00:52]} Ne4 {[%emt 0:00:05]} 13. Qc2 {[%emt 0:01:24]} f5 {[%emt 0:08:21]} 14. Bd3 {[%emt 0:05:40]} Qa5+ {[%emt 0:13:46]} 15. Ke2 {[%emt 0:01:14]} Nc6 {[%emt 0:11:00]} 16. b4 {[%emt 0:07:53]} Qd8 {[%emt 0:12:37]} 17. Bxe4 {[%emt 0:14:47]} fxe4 {[%emt 0:00:01]} 18. Nd2 {[%emt 0:00:49]} d5 {[%emt 0:00:07]} 19. bxc5 {[%emt 0:02:47]} Ba6 {[%emt 0:02:18]} 20. Rhd1 {[%emt 0:10:26]} Na5 {[%emt 0:03:28]} 21. Kf1 {[%emt 0:02:14]} Nxc4 {[%emt 0:04:03]} 22. Kg1 {[%emt 0:02:29]} Qf6 {[%emt 0:03:01]} 23. Nxe4 {[%emt 0:06:41]} dxe4 {[%emt 0:00:58]} 24. Qa4 {[%emt 0:00:04]} Nb2 {[%emt 0:11:56]} 25. Qxa6 {[%emt 0:00:08]} Nxd1 {[%emt 0:00:02]} 26. Rxd1 {[%emt 0:00:01]} Rad8 {[%emt 0:00:13]} 27. Rc1 {[%emt 0:03:13]} h5 {[%emt 0:02:37]} 28. Qe2 {[%emt 0:04:36]} h4 {[%emt 0:04:57]} 29. Bd6 {[%emt 0:00:06]} Rf7 {[%emt 0:00:01]} 30. h3 {[%emt 0:00:07]} Rb7 {[%emt 0:01:00]} 31. c6 {[%emt 0:04:59]} Rb6 {[%emt 0:07:05]} 32. Qc2 {[%emt 0:06:20]} Rb2 {[%emt 0:00:47]} 33. Qxe4 {[%emt 0:00:22]} Qxf2+ {[%emt 0:00:29]} 34. Kh1 {[%emt 0:00:33]} Qf5 {[%emt 0:00:40]} 35. c7 {[%emt 0:01:25]} Rc8 {[%emt 0:00:05]} 36. Qc4 {[%emt 0:05:19]} Qd5 {[%emt 0:00:50]} 37. Qxd5 {[%emt 0:01:31]} exd5 {[%emt 0:00:01]} 38. Be5 {[%emt 0:02:15]} Rb3 {[%emt 0:00:40]} 39. Rc5 {[%emt 0:00:24]} Kf7 {[%emt 0:01:05]} 40. Rxd5 {[%emt 0:00:00]} Ke8 {[%emt 0:00:00]} 41. Bd6 {[%emt 0:09:55]} Rxe3 {[%emt 0:04:32]} 42. Rxg5 {[%emt 0:00:21]} Kd7 {[%emt 0:00:54]} 43. Rd5 {[%emt 0:03:49]} Re4 {[%emt 0:12:37]} 44. Kg1 {[%emt 0:02:41]} Kc6 {[%emt 0:01:42]} 45. Rd3 {[%emt 0:00:35]} Re2 {[%emt 0:05:28]} 46. Bf4 {[%emt 0:02:40]} Ra2 {[%emt 0:02:51]} 47. Rc3+ {[%emt 0:00:52]} Kd7 {[%emt 0:00:23]} 48. Rd3+ {[%emt 0:03:46]} Kc6 {[%emt 0:01:16]} 49. Bd6 {[%emt 0:03:29]} a5 {[%emt 0:01:04]} 50. Rd4 {[%emt 0:01:20]} Rg8 {[%emt 0:01:28]} 51. Kf1 {[%emt 0:00:33]} Kb7 {[%emt 0:01:30]} 52. Bf4 {[%emt 0:06:08]} Rc8 {[%emt 0:02:33]} 53. a4 {[%emt 0:00:24]} Rb2 {[%emt 0:00:44]} 54. Bd6 {[%emt 0:01:52]} Kc6 {[%emt 0:00:10]} 55. g4 {[%emt 0:00:26]} hxg3 {[%emt 0:00:12]} 56. Bxg3 {[%emt 0:00:12]} Rb4 {[%emt 0:00:46]} 57. Rg4 {[%emt 0:00:56]} Rf8+ {[%emt 0:01:12]} 58. Ke2 {[%emt 0:00:06]} Rh8 {[%emt 0:00:15]} 59. Ke3 {[%emt 0:01:13]} Kd7 {[%emt 0:00:22]} 60. Rg7+ {[%emt 0:00:44]} Kc8 {[%emt 0:00:04]} 61. h4 {[%emt 0:00:11]} Rxa4 {[%emt 0:00:21]} 62. h5 {[%emt 0:00:13]} Ra1 {[%emt 0:01:01]} 63. Rg5 {[%emt 0:00:24]} a4 {[%emt 0:00:45]} 64. Ra5 {[%emt 0:00:48]} Kd7 {[%emt 0:00:14]} 65. Ra7 {[%emt 0:00:38]} Rc8 {[%emt 0:00:13]} 66. h6 {[%emt 0:00:12]} a3 {[%emt 0:00:24]} 67. Be5 {[%emt 0:00:23]} Rh1 {[%emt 0:01:15]} 68. Bf4 {[%emt 0:00:13]} Re8+ {[%emt 0:00:39]} 69. Kf2 {[%emt 0:00:28]} Ra1 {[%emt 0:00:29]} 70. Kg2 {[%emt 0:00:34]} a2 {[%emt 0:00:31]} 71. h7 {[%emt 0:00:31]} Rb1 {[%emt 0:00:32]} 72. Rxa2 {[%emt 0:00:16]} Rd1 {[%emt 0:00:31]} 73. Rb2 {[%emt 0:00:56]} Ra1 {[%emt 0:00:29]} 74. Rd2+ {[%emt 0:00:16]} Kc6 {[%emt 0:00:14]} 75. Rc2+ {[%emt 0:00:10]} Kd5 {[%emt 0:00:50]} 1-0